bitfinex/quotes_ETHUSD_20220112
["timestamp","ask_amount","ask_price","bid_price","bid_amount"]
[1641994727296,2.93970126,3349.3,3348.5,0.07508004]
[1641994727597,2.93970126,3349.3,3348.3,8.0227]
[1641994727598,0.74668,3349.0,3348.6,0.00568424]
[1641994727995,0.6,3349.3,3348.4,2.43859282]
[1641994728196,0.6,3349.3,3348.4,0.00682108]
[1641994728435,0.1194,3349.9,3348.4,0.00682108]
[1641994728436,0.1194,3349.9,3348.6,0.06903625]
[1641994728639,1.145,3350.7,3349.1,1.5765637]
[1641994728640,0.7463,3350.4,3349.1,1.5765637]
[1641994728937,0.00397896,3350.3,3349.2,2.43404544]
[1641994729134,0.00397896,3350.3,3349.2,0.0022737]
[1641994729334,0.00341054,3350.2,3349.3,0.00170527]
[1641994729537,0.00341054,3350.2,3349.1,0.00284212]
[1641994729734,0.007,3351.0,3349.3,0.74634]
[1641994729735,0.00284211,3350.1,3349.3,0.74634]
[1641994729936,0.00284211,3350.1,3349.9,2.03027501]
[1641994730135,0.007,3351.0,3350.0,2.43177174]
[1641994730335,0.007,3351.0,3350.1,0.0630244]
[1641994730536,0.0073895,3350.9,3350.0,7.5967]
[1641994730736,0.0073895,3350.9,3350.3,0.74612]
[1641994730944,0.00682108,3350.8,3350.3,0.74612]
[1641994731144,0.00682108,3350.8,3350.0,7.5967]
[1641994731339,2.08859585,3350.1,3350.0,6.69991408]
[1641994731547,0.3,3350.1,3350.0,6.69991408]
[1641994731742,0.00284211,3350.1,3350.0,6.69991408]
[1641994731940,0.30284211,3350.1,3350.0,6.69991408]
[1641994732194,0.00284211,3350.1,3350.0,6.69991408]
[1641994732399,0.37436039,3351.5,3349.2,2.38290859]
[1641994732594,0.01300421,3350.0,3348.6,2.47381381]
[1641994732793,0.01291993,3350.5,3348.5,0.776862]
[1641994732794,0.00113685,3350.1,3349.3,0.00341053]
[1641994733106,0.00113685,3350.1,3348.5,0.776862]
[1641994733107,0.74659,3349.7,3348.6,2.43916124]
[1641994733295,1.04659,3349.7,3348.5,0.7342515]
[1641994733495,2.22057367,3349.1,3348.5,0.7342515]
[1641994733894,0.0022737,3349.0,3348.5,0.7342515]
[1641994734294,0.00170527,3348.9,3348.5,0.7342515]
[1641994734598,0.00113685,3348.8,3348.5,0.7342515]
[1641994734999,0.0022737,3349.0,3348.5,0.7342515]
[1641994735395,0.01470948,3348.9,3348.5,0.7342515]
[1641994735597,5.44679664,3348.6,3348.5,0.7342515]
[1641994735843,5.74679664,3348.6,3348.5,0.7342515]
[1641994736046,1.49679664,3348.6,3348.5,0.7342515]
[1641994736249,0.89679664,3348.6,3348.5,0.74655492]
[1641994736446,0.00113685,3348.8,3348.5,0.74655492]
[1641994736645,0.00113685,3348.8,3348.5,0.7342515]
[1641994737151,1.97927727,3348.7,3348.5,0.7342515]
[1641994737348,0.00113685,3348.8,3348.5,0.7342515]
[1641994738350,2.08233761,3348.7,3348.5,0.7342515]
[1641994738550,0.00113685,3348.8,3348.6,0.06665671]
[1641994738953,0.00113685,3348.8,3348.0,1.64844514]
[1641994739151,0.00356827,3348.7,3348.0,1.64844514]
[1641994739350,0.00356827,3348.7,3348.1,0.00284212]
[1641994739598,0.00113685,3348.8,3348.1,0.00284212]
[1641994739992,0.00113685,3348.8,3348.2,0.04949579]
[1641994740194,0.00113685,3348.8,3348.1,0.00284212]
[1641994740395,0.00113685,3348.8,3348.3,0.00170527]
[1641994740598,1.00113685,3348.8,3348.3,0.00170527]
[1641994740798,1.00285042,3348.8,3348.3,0.00170527]
[1641994740997,1.60285042,3348.8,3348.3,0.00170527]
[1641994741197,1.60285042,3348.8,3347.9,0.00397896]
[1641994741408,1.00285042,3348.8,3347.9,0.00397896]
[1641994741600,3.4677428,3350.1,3348.0,7.75]
[1641994741800,0.1232,3353.4,3348.7,0.01281019]
[1641994741801,0.1194,3351.0,3348.7,0.01281019]
[1641994741999,0.00170527,3349.1,3348.8,0.04965001]
[1641994742499,0.00113685,3349.0,3348.7,1.49258]
[1641994742701,0.00113685,3349.0,3348.6,1.49286]
[1641994742900,2.29972695,3349.8,3348.8,0.74645]
[1641994743100,2.29972695,3349.8,3348.7,2.37663592]
[1641994743101,2.59972695,3349.8,3348.7,2.37663592]
[1641994743357,2.59972695,3349.8,3348.6,1.49286]
[1641994743358,0.00511581,3349.7,3348.6,1.49286]
[1641994743555,0.04045379,3349.6,3348.6,1.49286]
[1641994743758,0.00454739,3349.6,3348.9,1.49273]
[1641994743960,0.00397896,3349.5,3349.2,0.74632]
[1641994744455,0.3,3349.8,3348.9,1.49273]
[1641994744456,0.00341054,3349.4,3348.9,1.49273]
[1641994744657,0.00341054,3349.4,3349.2,1.87434991]
[1641994744958,0.00284212,3349.3,3349.2,1.87434991]
[1641994745756,0.00284212,3349.3,3349.2,4.11324991]
[1641994745955,0.00284212,3349.3,3349.2,3.36693991]
[1641994746358,0.00284212,3349.3,3349.2,1.87434991]
[1641994746560,0.00284212,3349.3,3349.1,7.7754]
[1641994746757,0.74655,3350.0,3349.1,7.7754]
[1641994746958,0.04016181,3349.8,3348.1,0.00397897]
[1641994747208,0.64016181,3349.8,3348.1,0.00397897]
[1641994747408,0.362,3349.7,3348.0,0.00738951]
[1641994747607,2.16218561,3348.4,3348.0,0.00738951]
[1641994747805,0.74679,3348.8,3348.0,0.00738951]
[1641994748008,0.3,3348.4,3348.0,0.00738951]
[1641994748511,0.662,3349.3,3348.0,0.00738951]
[1641994748908,2.9929201,3349.1,3348.0,0.00738951]
[1641994749111,0.3,3349.0,3348.0,0.00738951]
[1641994749511,2.5462701,3349.1,3348.0,0.00738951]
[1641994749512,2.8462701,3349.1,3348.0,0.00738951]
[1641994749713,0.1194,3349.0,3348.0,0.00738951]
[1641994750119,0.86617,3349.0,3348.0,0.00738951]
[1641994750515,0.06265422,3348.5,3348.0,0.00738951]
[1641994750717,2.2403429,3348.8,3348.0,0.00738951]
[1641994750946,0.6,3348.6,3348.0,0.00738951]
[1641994751150,0.89692433,3348.2,3348.0,0.00738951]
[1641994751553,2.99069433,3348.2,3348.0,0.00738951]
[1641994751755,7.42484157,3348.1,3347.3,0.01136847]
[1641994751951,0.74708,3347.8,3346.8,7.43061059]
[1641994752148,0.74708,3347.8,3346.9,0.01364217]
[1641994752149,0.3,3347.7,3346.9,0.01364217]
[1641994752951,1.67976457,3347.3,3346.9,0.01364217]
[1641994753149,0.02600393,3347.2,3346.9,0.01364217]
[1641994753352,2.27976457,3347.3,3346.9,0.01364217]
[1641994753755,2.27976457,3347.3,3346.8,7.4164]
[1641994753756,0.88362089,3346.9,3346.8,7.4164]
[1641994753954,1.48362089,3346.9,3346.2,0.0126863]
[1641994754163,0.78728543,3346.8,3346.2,0.0126863]
[1641994754359,0.84813687,3346.8,3346.3,0.00341054]
[1641994754625,0.3,3346.7,3346.3,0.00341054]
[1641994755022,0.3,3346.7,3345.9,0.00568423]
[1641994755218,0.7472706,3346.3,3345.8,7.15988423]
[1641994755420,0.74726,3346.1,3345.8,7.15988423]
[1641994755721,0.3,3346.1,3345.8,7.15988423]
[1641994755919,0.3,3346.1,3345.7,0.01292553]
[1641994755920,0.3,3346.0,3345.7,0.01292553]
[1641994756119,0.30170527,3346.2,3345.7,0.01292553]
[1641994756317,0.30170527,3346.2,3345.2,1.86714371]
[1641994756318,0.00170527,3346.2,3345.3,0.00341054]
[1641994756518,0.00113685,3346.1,3345.8,0.74705]
[1641994756923,2.41716886,3346.5,3345.5,1.4941]
[1641994757118,0.02373691,3346.4,3345.5,1.4941]
[1641994757319,0.89742439,3346.3,3345.6,0.00170527]
[1641994757519,0.60227369,3346.3,3345.6,0.00170527]
[1641994757718,2.29992917,3345.9,3345.6,0.00170527]
[1641994758118,0.3,3345.9,3345.6,0.00170527]
[1641994758347,0.6,3345.9,3345.7,0.0074794]
[1641994758548,0.3,3345.9,3345.7,2.27422342]
[1641994759152,0.00170527,3346.2,3345.4,0.00284212]
[1641994759153,0.30170527,3346.2,3345.4,0.00284212]
[1641994759559,0.00113685,3346.1,3345.4,0.00284212]
[1641994759754,0.89753643,3345.9,3345.4,0.00284212]
[1641994759955,0.04993113,3345.8,3345.4,0.00284212]
[1641994760156,1.49753643,3345.9,3345.4,0.00284212]
[1641994760557,0.89753643,3345.9,3345.6,0.74708]
[1641994760757,0.89753643,3345.9,3345.8,4.7439]
[1641994761060,0.00170527,3346.2,3345.7,0.00113685]
[1641994761456,0.00113685,3346.1,3345.4,0.00284212]
[1641994761857,0.00113685,3346.1,3345.6,0.74711]
[1641994762098,0.00113685,3346.1,3345.4,0.00284212]
[1641994762297,0.00113685,3346.1,3345.2,2.30072712]
[1641994762298,0.00113685,3346.1,3345.7,0.00113685]
[1641994762695,0.05999835,3346.0,3345.7,0.00113685]
[1641994762896,0.00113685,3346.1,3345.7,0.00113685]
[1641994763197,0.00113685,3346.1,3345.4,0.00284212]
[1641994763396,0.00113685,3346.1,3345.5,1.49411]
[1641994763797,0.00113685,3346.1,3345.6,0.00170527]
[1641994763998,0.00113685,3346.1,3345.7,0.5]
[1641994763999,0.89861683,3346.1,3345.7,0.5]
[1641994764198,0.01749832,3346.0,3345.7,0.5]
[1641994764398,1.19861683,3346.1,3345.7,0.5]
[1641994764705,1.49861683,3346.1,3345.7,0.5]
[1641994764999,2.24577683,3346.1,3345.7,0.5]
[1641994765599,0.3,3346.0,3345.8,7.78530369]
[1641994765854,2.36201344,3347.6,3345.8,7.75170527]
[1641994766044,1.49413,3346.7,3346.0,0.02091325]
[1641994766245,1.49413,3346.7,3345.9,0.00113685]
[1641994766445,1.99324926,3346.1,3345.9,0.00113685]
[1641994766846,1.99324926,3346.1,3345.8,0.00170527]
[1641994767256,2.59324926,3346.1,3345.8,0.00170527]
[1641994767450,0.01984236,3346.0,3345.8,0.00170527]
[1641994767650,0.03793262,3346.0,3345.8,0.00170527]
[1641994767850,2.59324926,3346.1,3345.8,0.00170527]
[1641994768253,0.02276893,3346.0,3345.8,0.00170527]
[1641994768655,0.76996893,3346.0,3345.8,0.00170527]
[1641994769055,0.7472,3346.0,3345.8,0.00170527]
[1641994769719,2.2421489,3345.6,3344.5,1.2329]
[1641994769920,1.94004668,3345.3,3344.5,1.2329]
[1641994770117,1.94004668,3345.3,3344.3,4.4436]
[1641994770118,1.94004668,3345.3,3345.1,0.00397897]
[1641994770316,0.3,3345.3,3345.1,0.00397897]
[1641994770817,0.74727,3346.1,3344.7,0.00625266]
[1641994771017,1.04727,3346.1,3344.7,0.00625266]
[1641994771217,0.00113684,3346.0,3344.7,0.00625266]
[1641994771417,2.33431162,3345.3,3344.7,0.00625266]
[1641994771818,2.33431162,3345.3,3344.5,1.49458]
[1641994771819,2.93431162,3345.3,3344.5,1.49458]
[1641994772018,2.93431162,3345.3,3344.6,0.00682109]
[1641994772422,2.93431162,3345.3,3344.4,2.23601856]
[1641994772423,0.89777887,3345.0,3344.4,2.23601856]
[1641994772620,0.89777887,3345.0,3344.4,0.00795793]
[1641994772821,0.89777887,3345.0,3344.5,0.00738951]
[1641994772822,1.49777887,3345.0,3344.5,0.00738951]
[1641994773020,0.02407567,3344.8,3344.4,0.00795793]
[1641994773221,0.7475385,3344.9,3344.4,0.00795793]
[1641994773222,2.24530887,3345.0,3344.4,0.00795793]
[1641994774055,0.06265422,3344.8,3344.4,0.00795793]
[1641994774257,0.74765,3344.7,3344.4,0.00795793]
[1641994774458,0.3,3344.6,3344.4,0.00795793]
[1641994774657,0.62341416,3344.6,3344.4,0.00795793]
[1641994774858,0.6,3344.6,3344.4,0.00795793]
[1641994775161,2.05369332,3344.5,3344.1,0.0096632]
[1641994775359,0.0185604,3344.4,3344.1,0.0096632]
[1641994775558,2.05369332,3344.5,3344.1,0.0096632]
[1641994775759,2.05369332,3344.5,3343.5,7.5606]
[1641994775760,0.05844459,3344.4,3343.7,1.33323265]
[1641994775959,0.06014986,3344.4,3343.7,1.33323265]
[1641994776159,0.00113684,3344.3,3343.8,0.00170527]
[1641994776560,0.00170527,3344.4,3343.6,0.00284212]
[1641994776762,0.00170527,3344.4,3343.7,1.69847647]
[1641994776986,2.05369332,3344.5,3343.6,0.00284212]
[1641994776987,0.00113684,3344.3,3343.6,0.00284212]
[1641994777401,0.00170527,3344.4,3343.6,2.50475356]
[1641994777603,2.24278,3345.2,3343.7,7.75]
[1641994777803,0.00227369,3344.3,3343.8,0.02235302]
[1641994778003,0.00227369,3344.3,3343.7,0.00113685]
[1641994778004,1.94356369,3344.2,3343.7,0.00113685]
[1641994778202,1.94526896,3344.2,3343.7,0.00113685]
[1641994778408,0.01558613,3344.1,3343.7,0.00113685]
[1641994778603,0.00113685,3344.1,3343.7,0.00113685]
[1641994779216,1.94356369,3344.2,3343.9,7.75]
[1641994779406,2.32822298,3346.1,3343.9,7.75]
[1641994779407,0.362,3347.2,3344.9,0.03451743]
[1641994779606,1.5468,3347.7,3345.5,0.012246]
[1641994779805,1.5468,3347.7,3345.2,1.4425181]
[1641994779806,7.75,3347.6,3345.2,1.4425181]
[1641994780006,7.75,3347.6,3345.4,0.01242622]
[1641994780311,0.01932639,3347.5,3345.4,0.01242622]
[1641994780509,0.7472,3346.8,3345.4,0.01242622]
[1641994780706,0.7472,3346.8,3345.3,1.49424]
[1641994780952,0.01477901,3346.7,3345.2,1.4425181]
[1641994781356,0.01421058,3346.6,3345.2,1.4425181]
[1641994781557,0.02458973,3346.5,3345.2,1.4425181]
[1641994781756,0.03823189,3346.5,3345.2,2.1897481]
[1641994781958,0.01307374,3346.4,3345.2,2.1897481]
[1641994782357,0.01250531,3346.3,3345.3,0.01179928]
[1641994782760,0.04962467,3346.2,3345.2,1.4425181]
[1641994783063,1.0,3347.5,3345.3,0.74721]
[1641994783064,0.0279192,3346.1,3345.3,0.74721]
[1641994783258,0.01136847,3346.1,3345.4,2.15004693]
[1641994783458,0.01136847,3346.1,3345.0,1.4944]
[1641994783459,0.01080004,3346.0,3345.1,2.38620554]
[1641994783663,0.01080004,3346.0,3345.4,0.01660897]
[1641994783858,0.01023162,3345.9,3345.4,0.13819997]
[1641994784261,0.89762309,3345.6,3345.5,4.94411]
[1641994784458,0.0096632,3345.8,3345.5,3.94286697]
[1641994784707,1.1848,3347.7,3345.6,0.1195]
[1641994785107,0.01932639,3347.5,3345.6,0.1195]
[1641994785305,7.75,3347.4,3345.9,0.74708]
[1641994785507,0.74708,3346.7,3346.0,2.28348334]
[1641994785710,0.74708,3346.7,3345.9,0.74708]
[1641994785912,0.01421058,3346.6,3346.0,2.14905631]
[1641994786113,0.01421058,3346.6,3346.1,0.1195]
[1641994786313,0.89739755,3346.4,3346.0,0.1195]
[1641994786516,0.89739755,3346.4,3346.0,0.74706]
[1641994786517,0.03446038,3346.3,3346.0,0.74706]
[1641994786713,0.01250531,3346.3,3345.9,0.13819997]
[1641994786914,0.01193689,3346.2,3345.9,0.13819997]
[1641994787312,0.89739755,3346.4,3345.9,0.13819997]
[1641994787313,0.01136847,3346.1,3345.9,0.13819997]
[1641994787716,2.32328013,3346.0,3345.9,0.13819997]
[1641994788014,2.32328013,3346.0,3345.5,1.61369]
[1641994788455,0.01023162,3345.9,3345.4,0.13819997]
[1641994788655,0.01023162,3345.9,3344.8,1.93922101]
[1641994788656,0.06265422,3345.8,3344.9,7.7089]
[1641994788857,0.74736,3345.6,3344.9,7.7089]
[1641994789053,0.74736,3345.6,3345.0,0.00454739]
[1641994789254,2.39216081,3346.0,3345.0,0.00454739]
[1641994789255,1.49465,3346.0,3345.0,0.00454739]
[1641994789753,1.49465,3346.0,3345.0,0.01680204]
[1641994790159,1.49465,3346.0,3345.1,0.00397897]
[1641994790160,0.74732,3345.7,3345.1,0.00397897]
[1641994790354,1.97794057,3345.6,3345.1,0.00397897]
[1641994790554,1.97794057,3345.6,3345.0,0.00454739]
[1641994791361,0.1195,3346.5,3345.2,0.09795791]
[1641994791556,2.24204,3346.6,3345.0,3.70844458]
[1641994791761,0.89483675,3345.3,3345.2,2.12634984]
[1641994791958,0.89483675,3345.3,3345.1,0.00113685]
[1641994792533,0.89483675,3345.3,3345.2,0.74706]
[1641994792733,1.19483675,3345.3,3345.2,0.74706]
[1641994794135,1.19483675,3345.3,3345.2,4.29706]
[1641994794535,0.3,3345.3,3345.2,5.29706]
[1641994794737,1.49435,3346.6,3345.3,0.08605516]
[1641994794935,1.49435,3346.6,3345.9,0.74707]
[1641994795235,0.00682108,3346.5,3345.9,0.74707]
[1641994795436,2.20688129,3346.2,3345.9,0.74707]
[1641994795635,1.49415,3346.3,3345.9,0.74707]
[1641994795860,0.00454739,3346.1,3345.9,0.74707]
[1641994796062,0.00511581,3346.2,3345.9,0.74707]
[1641994796262,0.00397896,3346.0,3345.9,0.74707]
[1641994796464,8.16662,3347.7,3345.9,0.74707]
[1641994796465,0.00454739,3346.1,3345.9,0.74707]
[1641994796666,0.00397896,3346.0,3345.4,1.49428]
[1641994796866,0.90148013,3346.0,3345.2,0.74725]
[1641994797165,2.24157,3346.5,3345.2,0.74725]
[1641994797166,0.00341054,3345.9,3345.2,0.74725]
[1641994797462,2.17205002,3345.6,3345.2,0.74725]
[1641994797668,0.74718,3345.5,3345.2,0.74725]
[1641994797864,0.74831684,3345.5,3345.2,0.74725]
[1641994798062,0.3,3345.4,3345.2,0.74725]
[1641994800104,0.3,3345.4,3345.3,1.75054043]
[1641994800304,0.3,3345.4,3345.3,4.30190586]
[1641994800705,0.3,3345.4,3345.3,5.30190586]
[1641994800908,0.89759624,3345.7,3345.4,7.81418002]
[1641994801210,0.01205482,3347.8,3345.4,7.81418002]
[1641994801211,1.1951,3347.7,3345.6,0.08025033]
[1641994801407,2.220687,3348.0,3345.7,0.362]
[1641994801611,0.00738951,3346.8,3345.8,3.52490572]
[1641994801805,0.00738951,3346.8,3345.9,0.362]
[1641994802123,2.27062357,3347.9,3347.7,1.84456829]
[1641994802309,2.220687,3348.0,3347.7,1.0159]
[1641994802507,0.00682108,3347.9,3347.7,1.0159]
[1641994802706,0.00682108,3347.9,3347.8,4.6]
[1641994802910,2.220687,3348.0,3347.7,1.0159]
[1641994803351,2.220687,3348.0,3347.7,5.49318]
[1641994803352,0.00625265,3347.8,3347.7,5.49318]
[1641994804053,2.220687,3348.0,3347.8,7.75]
[1641994804253,0.13149107,3349.8,3347.9,2.57803551]
[1641994804454,0.13149107,3349.8,3348.7,1.49271]
[1641994804455,1.49275,3349.7,3348.7,1.49271]
[1641994804654,0.00852636,3349.3,3348.7,2.17371]
[1641994804855,0.00852636,3349.3,3348.8,0.74636]
[1641994804856,0.74639,3349.2,3348.8,0.74636]
[1641994805055,0.75434793,3349.2,3348.8,0.74636]
[1641994805256,0.00738951,3349.1,3348.8,0.74636]
[1641994805654,0.00682109,3349.0,3348.8,0.74636]
[1641994805855,0.00682109,3349.0,3348.8,0.64636]
[1641994806055,0.00625266,3348.9,3348.8,0.64636]
[1641994806258,0.00625266,3348.9,3348.7,1.24209103]
[1641994806554,0.00568424,3348.8,3348.7,1.24209103]
[1641994806954,0.00568424,3348.8,3348.7,3.18675136]
[1641994807405,0.00568424,3348.8,3348.7,1.24209103]
[1641994808816,0.00568424,3348.8,3348.7,4.24209103]
[1641994809212,0.00568424,3348.8,3348.7,3.0]
[1641994814071,0.00568424,3348.8,3348.0,8.08944]
[1641994814072,0.8969288,3348.1,3348.0,8.08944]
[1641994814269,0.8969288,3348.1,3347.6,0.13819997]
[1641994814270,1.49354,3348.0,3347.6,0.13819997]
[1641994814711,1.49467685,3348.0,3347.6,0.13819997]
[1641994815111,0.75888629,3347.6,3347.0,7.6878]
[1641994815411,0.75888629,3347.6,3347.1,0.11757897]
[1641994815614,0.75888629,3347.6,3347.5,1.49325]
[1641994815815,0.00113685,3348.0,3347.7,0.07262923]
[1641994816013,0.00113685,3348.0,3347.7,1.0]
[1641994816211,0.00113685,3348.0,3347.8,2.26364641]
[1641994816718,2.2395,3349.4,3347.8,2.26364641]
[1641994816719,3.10549,3350.0,3347.9,8.12410729]
[1641994816915,1.1459,3351.0,3347.9,8.12410729]
[1641994816916,2.99793032,3350.6,3348.8,1.49261]
[1641994817115,2.99793032,3350.6,3348.9,6.6693]
[1641994817116,2.25089032,3350.6,3348.9,6.6693]
[1641994817514,0.74626,3349.7,3349.4,1.84759677]
[1641994817715,0.74626,3349.7,3349.0,1.0]
[1641994818019,3.52796398,3349.9,3349.3,0.74622]
[1641994818020,0.74622,3349.5,3349.3,0.74622]
[1641994818455,0.74636,3349.3,3349.0,1.49262]
[1641994818656,0.74636,3349.3,3349.0,2.49262]
[1641994818857,0.00682108,3349.2,3349.0,1.49262]
[1641994819262,0.00625266,3349.1,3349.0,1.49262]
[1641994819659,0.74636,3349.3,3349.1,7.75]
[1641994819859,0.74636,3349.3,3349.1,8.5535]
[1641994820062,0.89645631,3349.9,3349.2,1.0]
[1641994820261,0.89645631,3349.9,3349.6,0.74615]
[1641994820458,0.00397896,3349.8,3349.6,0.74615]
[1641994820662,0.00397896,3349.8,3349.6,1.74615]
[1641994820663,1.49229,3349.7,3349.6,1.74615]
[1641994820861,1.49570054,3349.7,3349.5,1.49229]
[1641994821259,0.00284212,3349.6,3349.5,1.49229]
[1641994822712,0.00284212,3349.6,3349.5,3.84229]
[1641994823416,0.00284212,3349.6,3349.5,1.49229]
[1641994823616,0.00284212,3349.6,3349.5,2.49229]
[1641994823816,0.00284212,3349.6,3349.5,1.49229]
[1641994824423,0.00284212,3349.6,3349.5,2.49229]
[1641994824620,0.00284212,3349.6,3349.5,1.49229]
[1641994824819,0.00284212,3349.6,3349.5,2.49229]
[1641994825518,0.00284212,3349.6,3349.5,1.49229]
[1641994825719,0.00284212,3349.6,3349.5,2.49229]
[1641994825978,0.00284212,3349.6,3349.5,1.49229]
[1641994826172,0.00284212,3349.6,3349.5,2.49229]
[1641994826571,0.00284212,3349.6,3349.5,3.09685677]
[1641994826772,2.9974413,3351.4,3349.5,6.54685677]
[1641994826773,2.98468,3350.9,3349.5,6.54685677]
[1641994826977,1.63020997,3351.1,3349.6,0.06722947]
[1641994827172,1.63020997,3351.1,3349.7,0.60456677]
[1641994827173,0.00113684,3349.8,3349.7,0.60456677]
[1641994827374,1.49201,3351.1,3349.9,0.60456677]
[1641994827576,1.49201,3351.1,3350.1,0.60456677]
[1641994827774,1.87095489,3350.9,3350.4,0.60456677]
[1641994827973,1.87095489,3350.9,3350.4,2.77729137]
[1641994828172,0.00568424,3350.8,3350.3,0.60456677]
[1641994828373,1.49192,3350.6,3350.5,0.60456677]
[1641994828574,1.79192,3350.6,3350.3,1.49196]
[1641994828787,0.01259282,3350.5,3350.0,0.001]
[1641994828974,0.74629,3350.4,3350.0,0.001]
[1641994829177,2.26752801,3350.3,3350.0,0.001]
[1641994829373,3.01665523,3350.3,3350.0,0.001]
[1641994829607,0.0022737,3350.2,3350.0,0.001]
[1641994830006,0.00170527,3350.1,3350.0,0.001]
[1641994831110,0.00170527,3350.1,3350.0,3.001]
[1641994832715,0.30170527,3350.1,3350.0,3.001]
[1641994832917,1.19810265,3350.1,3350.0,3.001]
[1641994833951,0.30170527,3350.1,3350.0,3.001]
[1641994835158,0.00170527,3350.1,3350.0,3.001]
[1641994835358,0.74595,3350.7,3350.1,7.75]
[1641994835558,0.74595,3350.7,3350.3,0.74595]
[1641994835759,1.49198,3350.8,3350.4,0.0036033]
[1641994835958,2.98457,3351.6,3350.2,2.49189]
[1641994836159,0.00341054,3350.7,3350.6,2.07219311]
[1641994836558,0.00341054,3350.7,3350.6,1.17590018]
[1641994836759,0.00341054,3350.7,3350.2,4.75514486]
[1641994836960,0.00341054,3350.7,3350.5,1.4917]
[1641994837216,0.00284212,3350.6,3350.5,1.4917]
[1641994837421,1.49177,3351.3,3350.5,1.4917]
[1641994837422,1.49191,3351.2,3350.6,4.55]
[1641994837616,0.74597,3350.8,3350.6,4.55]
[1641994837817,0.74708685,3350.8,3350.7,5.99184]
[1641994838016,0.74504852,3350.8,3350.7,5.99184]
[1641994838315,1.04504852,3350.8,3350.7,1.49184]
[1641994839118,0.30113685,3350.8,3350.7,1.49184]
[1641994839922,1.79316575,3350.8,3350.3,0.74611]
[1641994840121,1.49234,3350.5,3350.1,1.49214]
[1641994840321,2.9259068,3350.5,3350.4,0.00113684]
[1641994840519,2.9259068,3350.5,3350.2,0.00227369]
[1641994840520,0.3,3350.4,3350.2,0.00227369]
[1641994840722,0.01285431,3350.3,3348.7,0.16630047]
[1641994840962,0.00497451,3350.2,3348.7,2.26090738]
[1641994841160,0.74631,3349.6,3349.0,0.7464]
[1641994841357,1.4928,3349.4,3349.0,0.7464]
[1641994841559,0.7463964,3349.3,3349.2,1.84948567]
[1641994841760,1.0463964,3349.3,3349.2,0.95284841]
[1641994841961,1.0463964,3349.3,3349.2,0.00568424]
[1641994842361,1.0463964,3349.3,3349.1,0.00625266]
[1641994842761,1.0463964,3349.3,3349.1,0.02157201]
[1641994843060,1.0463964,3349.3,3349.2,0.00568424]
[1641994843261,1.7926964,3349.3,3349.2,0.00568424]
[1641994843461,1.7926964,3349.3,3349.2,2.24316422]
[1641994843660,1.7926964,3349.3,3349.2,4.32643471]
[1641994843860,0.65333381,3349.3,3349.2,1.00568424]
[1641994844062,1.49248,3349.9,3349.2,1.00568424]
[1641994844063,0.00113685,3350.8,3349.2,2.7280957]
[1641994844263,0.00113685,3350.8,3349.8,0.16327421]
[1641994844461,0.74605,3350.2,3349.9,1.49208]
[1641994844719,0.7460183,3350.1,3349.9,1.49378527]
[1641994844921,0.7460183,3350.1,3350.0,0.74717685]
[1641994845420,0.74605,3350.2,3350.0,0.74717685]
[1641994845618,0.00341054,3350.8,3350.0,0.74717685]
[1641994845819,0.00341054,3350.8,3350.1,0.01479119]
[1641994846022,0.00341054,3350.8,3350.0,3.00193255]
[1641994846023,0.74874211,3350.7,3350.3,0.74591]
[1641994846219,3.18945091,3350.6,3350.3,0.74591]
[1641994846422,4.6837646,3350.6,3350.3,0.74591]
[1641994846620,0.00170527,3350.5,3350.3,0.74591]
[1641994847021,0.00113684,3350.4,3350.3,0.74591]
[1641994849659,2.48940684,3350.5,3350.3,0.74591]
[1641994849860,2.23827,3350.5,3350.3,0.74591]
[1641994850663,2.44351431,3350.6,3350.4,0.01073207]
[1641994851061,2.44351431,3350.6,3350.3,0.74591]
[1641994851462,2.44351431,3350.6,3350.4,3.0]
[1641994851863,2.74351431,3350.6,3350.4,3.0]
[1641994852308,2.69351431,3350.6,3350.4,3.0]
[1641994853510,2.39351431,3350.6,3350.4,3.0]
[1641994854910,1.69761431,3350.6,3350.4,3.0]
[1641994855857,0.74594,3351.0,3350.4,3.0]
[1641994856058,0.3,3350.6,3350.5,0.01941666]
[1641994856258,0.00113685,3350.6,3350.4,5.23779]
[1641994856463,3.7249,3352.2,3350.6,0.03192697]
[1641994856464,1.49168,3351.6,3350.6,0.03192697]
[1641994856662,0.07,3352.1,3350.6,0.03192697]
[1641994856864,1.88280999,3351.3,3350.6,1.66992313]
[1641994857162,1.88280999,3351.3,3350.8,0.74577]
[1641994857463,2.62860999,3351.3,3350.9,2.23737]
[1641994857664,2.62860999,3351.3,3350.9,2.18737]
[1641994858361,1.4916,3351.8,3351.0,0.7458]
[1641994858566,0.74575,3351.6,3351.1,0.0306861]
[1641994858766,0.74575,3351.6,3351.2,1.49149]
[1641994858965,0.00284211,3351.5,3351.2,1.49149]
[1641994859368,0.00227369,3351.4,3351.2,1.49149]
[1641994859806,0.74578,3351.5,3351.3,0.74575]
[1641994860208,5.10227369,3351.4,3351.3,0.74575]
[1641994860408,5.10227369,3351.4,3350.8,6.5686]
[1641994860409,5.10227369,3351.4,3350.9,1.4919]
[1641994860612,0.01281196,3351.1,3350.7,0.00170528]
[1641994860811,0.01281196,3351.1,3350.2,0.78182528]
[1641994861009,1.49243,3350.8,3350.2,0.74618]
[1641994861208,0.02046125,3350.7,3350.3,0.00227369]
[1641994861407,0.76668125,3350.7,3350.3,0.00227369]
[1641994861606,0.74622,3350.7,3350.3,0.00227369]
[1641994861807,2.08547399,3350.5,3350.1,0.00341054]
[1641994862211,3.57767399,3350.5,3350.4,0.74611]
[1641994862409,3.57767399,3350.5,3350.3,1.49214]
[1641994862610,3.87767399,3350.5,3350.4,0.00170527]
[1641994863014,0.3,3350.5,3350.4,0.00170527]
[1641994863211,1.49215,3350.7,3350.4,0.00170527]
[1641994863660,1.49215,3350.7,3350.0,0.035257]
[1641994863860,1.49215,3350.7,3350.0,3.035257]
[1641994863861,0.74621,3350.4,3350.0,3.035257]
[1641994864066,0.7462818,3350.3,3350.0,2.382457]
[1641994864259,0.7462818,3350.3,3349.0,0.13819997]
[1641994864260,1.4928,3349.9,3349.0,0.13819997]
[1641994864464,1.4928,3349.9,3348.9,4.4725]
[1641994864465,2.29086493,3349.0,3348.9,4.4725]
[1641994864861,2.29086493,3349.0,3348.3,2.24269123]
[1641994865060,2.29086493,3349.0,3348.8,1.49267]
[1641994865061,2.59086493,3349.0,3348.8,1.49267]